[Event "Open NK Rapid 2025 bord 26-50"]
[Site "Helmond, Netherlands"]
[Date "2025.05.03"]
[Round "3.18"]
[White "Torn, Daniel"]
[Black "Rohatgi, Kushagra"]
[Result "0-1"]
[TimeControl "15 min +5 sec increment"]
[WhiteFideId "1074490"]
[BlackFideId "34603212"]
[WhiteElo "1966"]
[BlackElo "1774"]

1. e4 {[%clk 00:14:18]} {[%emt 00:00:51]} c6 {[%clk 00:14:59]} {[%emt
00:00:12]} 2. d4 {[%clk 00:14:15]} {[%emt 00:00:08]} d5 {[%clk 00:14:52]}
{[%emt 00:00:13]} 3. Nc3 {[%clk 00:14:13]} {[%emt 00:00:06]} dxe4 {[%clk
00:14:55]} {[%emt 00:00:02]} 4. Nxe4 {[%clk 00:14:16]} {[%emt 00:00:02]} Nf6
{[%clk 00:14:59]} {[%emt 00:00:01]} 5. Nxf6+ {[%clk 00:14:13]} {[%emt
00:00:08]} exf6 {[%clk 00:15:03]} {[%emt 00:00:02]} 6. Nf3 {[%clk 00:13:47]}
{[%emt 00:00:30]} Bd6 {[%clk 00:15:01]} {[%emt 00:00:07]} 7. Bd3 {[%clk
00:13:42]} {[%emt 00:00:09]} O-O {[%clk 00:14:59]} {[%emt 00:00:08]} 8. h4
{[%clk 00:12:54]} {[%emt 00:00:53]} Re8+ {[%clk 00:14:46]} {[%emt 00:00:19]} 9.
Kf1 {[%clk 00:12:56]} {[%emt 00:00:02]} h5 {[%clk 00:14:30]} {[%emt 00:00:20]}
10. c4 {[%clk 00:12:31]} {[%emt 00:00:31]} Bg4 {[%clk 00:14:04]} {[%emt
00:00:31]} 11. g3 {[%clk 00:11:41]} {[%emt 00:00:55]} Qe7 {[%clk 00:13:10]}
{[%emt 00:00:58]} 12. Kg2 {[%clk 00:11:42]} {[%emt 00:00:04]} Nd7 {[%clk
00:12:52]} {[%emt 00:00:24]} 13. Bd2 {[%clk 00:11:07]} {[%emt 00:00:40]} c5
{[%clk 00:12:37]} {[%emt 00:00:20]} 14. Re1 {[%clk 00:10:34]} {[%emt 00:00:37]}
Qd8 {[%clk 00:12:14]} {[%emt 00:00:28]} 15. Bc3 {[%clk 00:10:15]} {[%emt
00:00:25]} cxd4 {[%clk 00:11:02]} {[%emt 00:01:18]} 16. Bxd4 {[%clk 00:10:16]}
{[%emt 00:00:03]} Be5 {[%clk 00:10:27]} {[%emt 00:00:39]} 17. Be3 {[%clk
00:08:37]} {[%emt 00:01:44]} Bxb2 {[%clk 00:09:55]} {[%emt 00:00:38]} 18. Rb1
{[%clk 00:08:41]} {[%emt 00:00:02]} Bc3 {[%clk 00:09:17]} {[%emt 00:00:42]} 19.
Bd2 {[%clk 00:07:36]} {[%emt 00:01:10]} Bxf3+ {[%clk 00:08:10]} {[%emt
00:01:12]} 20. Kxf3 {[%clk 00:07:39]} {[%emt 00:00:02]} Rxe1 {[%clk 00:07:52]}
{[%emt 00:00:23]} 21. Bxe1 {[%clk 00:07:10]} {[%emt 00:00:35]} Ne5+ {[%clk
00:07:06]} {[%emt 00:00:51]} 22. Kg2 {[%clk 00:06:35]} {[%emt 00:00:39]} Bxe1
{[%clk 00:06:59]} {[%emt 00:00:12]} 23. Be4 {[%clk 00:05:50]} {[%emt 00:00:51]}
Qxd1 {[%clk 00:05:49]} {[%emt 00:01:14]} 24. Rxd1 {[%clk 00:05:53]} {[%emt
00:00:01]} Ba5 {[%clk 00:05:35]} {[%emt 00:00:20]} 25. Bxb7 {[%clk 00:05:53]}
{[%emt 00:00:05]} Rb8 {[%clk 00:05:27]} {[%emt 00:00:13]} 26. Bd5 {[%clk
00:05:15]} {[%emt 00:00:43]} Rc8 {[%clk 00:05:07]} {[%emt 00:00:25]} 27. Rc1
{[%clk 00:04:38]} {[%emt 00:00:41]} Bb6 {[%clk 00:05:01]} {[%emt 00:00:13]} 28.
Rc3 {[%clk 00:04:16]} {[%emt 00:00:26]} Ng4 {[%clk 00:04:33]} {[%emt 00:00:33]}
29. Rc2 {[%clk 00:03:56]} {[%emt 00:00:25]} Bc5 {[%clk 00:04:14]} {[%emt
00:00:24]} 30. Rb2 {[%clk 00:03:52]} {[%emt 00:00:09]} Rc7 {[%clk 00:03:46]}
{[%emt 00:00:33]} 31. Rb8+ {[%clk 00:03:46]} {[%emt 00:00:12]} Kh7 {[%clk
00:03:48]} {[%emt 00:00:02]} 32. Rb2 {[%clk 00:03:20]} {[%emt 00:00:31]} Ne5
{[%clk 00:03:25]} {[%emt 00:00:28]} 33. a4 {[%clk 00:03:14]} {[%emt 00:00:11]}
a5 {[%clk 00:03:14]} {[%emt 00:00:17]} 34. Rb5 {[%clk 00:02:57]} {[%emt
00:00:22]} Bb4 {[%clk 00:03:05]} {[%emt 00:00:13]} 35. Be4+ {[%clk 00:01:58]}
{[%emt 00:01:04]} g6 {[%clk 00:02:57]} {[%emt 00:00:13]} 36. f4 {[%clk
00:01:44]} {[%emt 00:00:18]} Nxc4 {[%clk 00:02:45]} {[%emt 00:00:18]} 37. Rxh5+
{[%clk 00:01:48]} {[%emt 00:00:02]} Kg7 {[%clk 00:02:47]} {[%emt 00:00:03]} 38.
Rb5 {[%clk 00:01:43]} {[%emt 00:00:10]} Nd6 {[%clk 00:02:44]} {[%emt 00:00:07]}
0-1

[Event "Open NK Rapid 2025 bord 26-50"]
[Site "Helmond, Netherlands"]
[Date "2025.05.03"]
[Round "3.19"]
[White "Oostvogels, Niek"]
[Black "John, Ryan"]
[Result "1-0"]
[TimeControl "15 min +5 sec increment"]
[WhiteFideId "1051725"]
[BlackFideId "40102122"]
[WhiteElo "1949"]
[BlackElo "1767"]

1. Nf3 {[%clk 00:15:08]} {[%emt 00:00:01]} d5 {[%clk 00:11:34]} {[%emt
00:03:37]} 2. g3 {[%clk 00:15:06]} {[%emt 00:00:06]} e6 {[%clk 00:11:36]}
{[%emt 00:00:04]} 3. Bg2 {[%clk 00:15:06]} {[%emt 00:00:04]} Nf6 {[%clk
00:11:39]} {[%emt 00:00:02]} 4. d3 {[%clk 00:15:08]} {[%emt 00:00:03]} Be7
{[%clk 00:11:41]} {[%emt 00:00:04]} 5. O-O {[%clk 00:15:04]} {[%emt 00:00:09]}
O-O {[%clk 00:11:44]} {[%emt 00:00:02]} 6. Nbd2 {[%clk 00:15:02]} {[%emt
00:00:06]} c5 {[%clk 00:11:40]} {[%emt 00:00:08]} 7. e4 {[%clk 00:14:44]}
{[%emt 00:00:25]} Nc6 {[%clk 00:11:24]} {[%emt 00:00:21]} 8. Re1 {[%clk
00:14:33]} {[%emt 00:00:16]} Qc7 {[%clk 00:11:08]} {[%emt 00:00:21]} 9. e5
{[%clk 00:13:47]} {[%emt 00:00:51]} Nd7 {[%clk 00:11:00]} {[%emt 00:00:12]} 10.
Qe2 {[%clk 00:13:46]} {[%emt 00:00:06]} Rb8 {[%clk 00:10:39]} {[%emt 00:00:26]}
11. Nf1 {[%clk 00:13:29]} {[%emt 00:00:22]} b6 {[%clk 00:10:37]} {[%emt
00:00:08]} 12. Bf4 {[%clk 00:13:15]} {[%emt 00:00:18]} Bb7 {[%clk 00:10:20]}
{[%emt 00:00:20]} 13. h4 {[%clk 00:12:44]} {[%emt 00:00:39]} Rbe8 {[%clk
00:09:40]} {[%emt 00:00:43]} 14. Ne3 {[%clk 00:12:13]} {[%emt 00:00:37]} Qd8
{[%clk 00:08:29]} {[%emt 00:01:16]} 15. Ng4 {[%clk 00:11:48]} {[%emt 00:00:31]}
f5 {[%clk 00:07:46]} {[%emt 00:00:48]} 16. exf6 {[%clk 00:11:15]} {[%emt
00:00:38]} Bxf6 {[%clk 00:07:40]} {[%emt 00:00:10]} 17. Nxf6+ {[%clk 00:10:43]}
{[%emt 00:00:37]} Nxf6 {[%clk 00:07:35]} {[%emt 00:00:10]} 18. Bh3 {[%clk
00:10:11]} {[%emt 00:00:37]} Bc8 {[%clk 00:06:49]} {[%emt 00:00:52]} 19. Ne5
{[%clk 00:09:26]} {[%emt 00:00:50]} Nxe5 {[%clk 00:05:21]} {[%emt 00:01:32]} 20.
Bxe5 {[%clk 00:09:29]} {[%emt 00:00:02]} Qe7 {[%clk 00:05:20]} {[%emt
00:00:06]} 21. Qd2 {[%clk 00:09:16]} {[%emt 00:00:19]} Nd7 {[%clk 00:04:43]}
{[%emt 00:00:42]} 22. Re2 {[%clk 00:08:38]} {[%emt 00:00:43]} Nxe5 {[%clk
00:04:42]} {[%emt 00:00:06]} 23. Rxe5 {[%clk 00:08:41]} {[%emt 00:00:01]} Qf6
{[%clk 00:04:44]} {[%emt 00:00:04]} 24. Rae1 {[%clk 00:08:43]} {[%emt
00:00:03]} d4 {[%clk 00:04:09]} {[%emt 00:00:39]} 25. Qe2 {[%clk 00:08:15]}
{[%emt 00:00:34]} Kh8 {[%clk 00:03:34]} {[%emt 00:00:40]} 26. f4 {[%clk
00:07:14]} {[%emt 00:01:05]} Qg6 {[%clk 00:03:08]} {[%emt 00:00:30]} 27. Kh2
{[%clk 00:07:09]} {[%emt 00:00:11]} Rf6 {[%clk 00:02:04]} {[%emt 00:01:10]} 28.
Qf3 {[%clk 00:05:27]} {[%emt 00:01:46]} Qf7 {[%clk 00:01:36]} {[%emt 00:00:33]}
29. Qe2 {[%clk 00:04:12]} {[%emt 00:01:21]} Kg8 {[%clk 00:00:58]} {[%emt
00:00:41]} 30. Bg4 {[%clk 00:03:02]} {[%emt 00:01:17]} h6 {[%clk 00:00:29]}
{[%emt 00:00:34]} 31. Bf3 {[%clk 00:02:29]} {[%emt 00:00:38]} Kf8 {[%clk
00:00:08]} {[%emt 00:00:26]} 32. Qe4 {[%clk 00:02:20]} {[%emt 00:00:13]} Kg8
{[%clk 00:00:09]} {[%emt 00:00:04]} 33. Qc6 {[%clk 00:01:47]} {[%emt 00:00:38]}
Bd7 {[%clk 00:00:09]} {[%emt 00:00:05]} 34. Qc7 {[%clk 00:01:36]} {[%emt
00:00:17]} Bc8 {[%clk 00:00:13]} 35. Qxf7+ {[%clk 00:01:30]} {[%emt 00:00:10]}
Kxf7 {[%clk 00:00:17]} {[%emt 00:00:01]} 36. Bg4 {[%clk 00:01:03]} {[%emt
00:00:32]} Re7 {[%clk 00:00:12]} {[%emt 00:00:11]} 37. f5 {[%clk 00:00:55]}
{[%emt 00:00:13]} 1-0

[Event "Open NK Rapid 2025 bord 26-50"]
[Site "Helmond, Netherlands"]
[Date "2025.05.03"]
[Round "3.20"]
[White "De Wit, Evan"]
[Black "Klute, Leon"]
[Result "0-1"]
[TimeControl "15 min +5 sec increment"]
[WhiteFideId "1096389"]
[BlackFideId "1096460"]
[WhiteElo "1917"]
[BlackElo "1761"]

1. e4 {[%clk 00:15:05]} {[%emt 00:00:04]} c5 {[%clk 00:15:09]} {[%emt
00:00:02]} 2. Nf3 {[%clk 00:15:07]} {[%emt 00:00:03]} d6 {[%clk 00:15:12]}
{[%emt 00:00:03]} 3. d4 {[%clk 00:15:00]} {[%emt 00:00:11]} cxd4 {[%clk
00:15:15]} {[%emt 00:00:02]} 4. Nxd4 {[%clk 00:15:04]} {[%emt 00:00:01]} Nf6
{[%clk 00:15:20]} {[%emt 00:00:01]} 5. Nc3 {[%clk 00:15:07]} {[%emt 00:00:02]}
a6 {[%clk 00:15:23]} {[%emt 00:00:01]} 6. f3 {[%clk 00:14:59]} {[%emt
00:00:13]} e5 {[%clk 00:15:21]} {[%emt 00:00:08]} 7. Nb3 {[%clk 00:15:01]}
{[%emt 00:00:01]} Be6 {[%clk 00:15:22]} {[%emt 00:00:06]} 8. Be3 {[%clk
00:15:03]} {[%emt 00:00:02]} Be7 {[%clk 00:15:23]} {[%emt 00:00:04]} 9. Qd2
{[%clk 00:15:03]} {[%emt 00:00:05]} h5 {[%clk 00:15:21]} {[%emt 00:00:08]} 10.
Nd5 {[%clk 00:14:24]} {[%emt 00:00:43]} Bxd5 {[%clk 00:14:27]} {[%emt
00:00:59]} 11. exd5 {[%clk 00:14:27]} {[%emt 00:00:02]} Nbd7 {[%clk 00:14:23]}
{[%emt 00:00:10]} 12. c4 {[%clk 00:14:14]} {[%emt 00:00:18]} Rb8 {[%clk
00:13:19]} {[%emt 00:01:09]} 13. a4 {[%clk 00:12:35]} {[%emt 00:01:44]} b6
{[%clk 00:12:36]} {[%emt 00:00:48]} 14. a5 {[%clk 00:12:02]} {[%emt 00:00:38]}
b5 {[%clk 00:12:21]} {[%emt 00:00:20]} 15. cxb5 {[%clk 00:11:55]} {[%emt
00:00:11]} axb5 {[%clk 00:12:02]} {[%emt 00:00:25]} 16. Rd1 {[%clk 00:11:03]}
{[%emt 00:00:56]} Qc8 {[%clk 00:10:55]} {[%emt 00:01:13]} 17. Qb4 {[%clk
00:09:58]} {[%emt 00:01:03]} Qb7 {[%clk 00:10:30]} {[%emt 00:00:37]} 18. Qd2
{[%clk 00:08:57]} {[%emt 00:01:05]} Bd8 {[%clk 00:07:31]} {[%emt 00:03:05]} 19.
Be2 {[%clk 00:08:28]} {[%emt 00:00:32]} Ra8 {[%clk 00:06:56]} {[%emt 00:00:41]}
20. O-O {[%clk 00:07:52]} {[%emt 00:00:40]} h4 {[%clk 00:06:24]} {[%emt
00:00:38]} 21. f4 {[%clk 00:06:18]} {[%emt 00:01:38]} b4 {[%clk 00:04:50]}
{[%emt 00:01:40]} 22. a6 {[%clk 00:06:08]} {[%emt 00:00:16]} Qb8 {[%clk
00:03:37]} {[%emt 00:01:18]} 23. fxe5 {[%clk 00:05:52]} {[%emt 00:00:20]} Nxe5
{[%clk 00:03:28]} {[%emt 00:00:14]} 24. Nd4 {[%clk 00:04:30]} {[%emt 00:01:27]}
O-O {[%clk 00:02:35]} {[%emt 00:00:59]} 25. Nc6 {[%clk 00:02:46]} {[%emt
00:01:48]} Nxc6 {[%clk 00:01:34]} {[%emt 00:01:06]} 26. dxc6 {[%clk 00:02:49]}
{[%emt 00:00:02]} Bb6 {[%clk 00:01:30]} {[%emt 00:00:10]} 27. Kh1 {[%clk
00:02:27]} {[%emt 00:00:25]} Bxe3 {[%clk 00:01:28]} {[%emt 00:00:09]} 28. Qxe3
{[%clk 00:02:26]} {[%emt 00:00:05]} Re8 {[%clk 00:01:27]} {[%emt 00:00:07]} 29.
Qd3 {[%clk 00:02:03]} {[%emt 00:00:24]} Qb6 {[%clk 00:01:06]} {[%emt 00:00:30]}
30. Qb5 {[%clk 00:01:35]} {[%emt 00:00:32]} Rab8 {[%clk 00:00:45]} {[%emt
00:00:27]} 31. Qxb6 {[%clk 00:01:11]} {[%emt 00:00:28]} Rxb6 {[%clk 00:00:49]}
{[%emt 00:00:02]} 32. Bf3 {[%clk 00:01:13]} {[%emt 00:00:03]} Rxa6 {[%clk
00:00:40]} {[%emt 00:00:14]} 33. Rxd6 {[%clk 00:01:12]} {[%emt 00:00:05]} Rc8
{[%clk 00:00:38]} {[%emt 00:00:07]} 34. Rc1 {[%clk 00:01:02]} {[%emt 00:00:15]}
Kf8 {[%clk 00:00:38]} {[%emt 00:00:05]} 35. Rd4 {[%clk 00:00:51]} {[%emt
00:00:14]} g5 {[%clk 00:00:28]} {[%emt 00:00:18]} 36. Rxb4 {[%clk 00:00:31]}
{[%emt 00:00:25]} g4 {[%clk 00:00:30]} {[%emt 00:00:03]} 37. Bxg4 {[%clk
00:00:26]} {[%emt 00:00:10]} Rcxc6 {[%clk 00:00:31]} {[%emt 00:00:03]} 38. Rxc6
{[%clk 00:00:18]} {[%emt 00:00:14]} Ra1+ {[%clk 00:00:35]} {[%emt 00:00:01]}
0-1

[Event "Open NK Rapid 2025 bord 26-50"]
[Site "Helmond, Netherlands"]
[Date "2025.05.03"]
[Round "3.21"]
[White "Lalkota, Sai Pranav Tejas"]
[Black "De Oude, Sybe"]
[Result "0-1"]
[TimeControl "15 min +5 sec increment"]
[WhiteFideId "1087690"]
[BlackFideId "40110052"]
[WhiteElo "1777"]
[BlackElo "1914"]

1. c4 {[%clk 00:15:09]} {[%emt 00:00:02]} f5 {[%clk 00:15:08]} {[%emt
00:00:02]} 2. Nc3 {[%clk 00:15:12]} {[%emt 00:00:02]} Nf6 {[%clk 00:15:11]}
{[%emt 00:00:02]} 3. g3 {[%clk 00:15:15]} {[%emt 00:00:02]} e6 {[%clk
00:15:15]} {[%emt 00:00:01]} 4. Bg2 {[%clk 00:15:18]} {[%emt 00:00:01]} Be7
{[%clk 00:15:18]} {[%emt 00:00:03]} 5. e3 {[%clk 00:15:21]} {[%emt 00:00:02]}
O-O {[%clk 00:15:18]} {[%emt 00:00:05]} 6. Nge2 {[%clk 00:15:25]} {[%emt
00:00:01]} c5 {[%clk 00:15:12]} {[%emt 00:00:10]} 7. O-O {[%clk 00:15:27]}
{[%emt 00:00:03]} Nc6 {[%clk 00:14:48]} {[%emt 00:00:30]} 8. d4 {[%clk
00:15:31]} {[%emt 00:00:01]} cxd4 {[%clk 00:14:18]} {[%emt 00:00:35]} 9. exd4
{[%clk 00:15:33]} {[%emt 00:00:03]} d6 {[%clk 00:14:00]} {[%emt 00:00:23]} 10.
Bf4 {[%clk 00:15:34]} {[%emt 00:00:04]} a6 {[%clk 00:13:10]} {[%emt 00:00:55]}
11. Qd2 {[%clk 00:15:30]} {[%emt 00:00:07]} Qc7 {[%clk 00:12:25]} {[%emt
00:00:51]} 12. d5 {[%clk 00:15:19]} {[%emt 00:00:17]} Ne5 {[%clk 00:12:04]}
{[%emt 00:00:27]} 13. Bxe5 {[%clk 00:15:17]} {[%emt 00:00:06]} dxe5 {[%clk
00:12:07]} {[%emt 00:00:02]} 14. dxe6 {[%clk 00:14:25]} {[%emt 00:00:56]} Qxc4
{[%clk 00:11:16]} {[%emt 00:00:55]} 15. Nd5 {[%clk 00:14:11]} {[%emt 00:00:18]}
Nxd5 {[%clk 00:11:08]} {[%emt 00:00:16]} 16. Bxd5 {[%clk 00:14:13]} {[%emt
00:00:02]} Qg4 {[%clk 00:10:50]} {[%emt 00:00:24]} 17. f3 {[%clk 00:13:48]}
{[%emt 00:00:29]} Qg6 {[%clk 00:10:38]} {[%emt 00:00:18]} 18. Qc3 {[%clk
00:13:44]} {[%emt 00:00:06]} Bxe6 {[%clk 00:09:48]} {[%emt 00:00:58]} 19. Qxe5
{[%clk 00:13:44]} {[%emt 00:00:04]} Bxd5 {[%clk 00:09:17]} {[%emt 00:00:37]} 20.
Qxd5+ {[%clk 00:13:48]} {[%emt 00:00:01]} Qf7 {[%clk 00:09:21]} {[%emt
00:00:01]} 21. Rad1 {[%clk 00:13:38]} {[%emt 00:00:14]} Rfd8 {[%clk 00:09:02]}
{[%emt 00:00:25]} 22. Qxb7 {[%clk 00:13:22]} {[%emt 00:00:20]} Bc5+ {[%clk
00:09:04]} {[%emt 00:00:03]} 23. Kg2 {[%clk 00:13:23]} {[%emt 00:00:05]} Qxb7
{[%clk 00:09:07]} {[%emt 00:00:02]} 24. Nf4 {[%clk 00:13:15]} {[%emt 00:00:12]}
Rxd1 {[%clk 00:09:04]} {[%emt 00:00:08]} 25. Rxd1 {[%clk 00:13:19]} {[%emt
00:00:02]} Qxb2+ {[%clk 00:09:05]} {[%emt 00:00:04]} 26. Ne2 {[%clk 00:13:14]}
{[%emt 00:00:09]} Qxe2+ {[%clk 00:09:08]} {[%emt 00:00:03]} 27. Kh3 {[%clk
00:13:18]} {[%emt 00:00:01]} Qxd1 {[%clk 00:09:08]} {[%emt 00:00:04]} 0-1

[Event "Open NK Rapid 2025 bord 26-50"]
[Site "Helmond, Netherlands"]
[Date "2025.05.03"]
[Round "3.22"]
[White "Jara Segovia, Jesus Javier"]
[Black "Pieper, Roy"]
[Result "1-0"]
[TimeControl "15 min +5 sec increment"]
[WhiteFideId "3925439"]
[BlackFideId "40101215"]
[WhiteElo "1909"]
[BlackElo "1758"]

1. e4 {[%clk 00:14:02]} {[%emt 00:01:08]} c6 {[%clk 00:15:09]} {[%emt
00:00:02]} 2. Nf3 {[%clk 00:14:05]} {[%emt 00:00:02]} d5 {[%clk 00:15:13]} 3.
e5 {[%clk 00:14:08]} c5 {[%clk 00:15:16]} {[%emt 00:00:02]} 4. b4 {[%clk
00:14:13]} {[%emt 00:00:01]} cxb4 {[%clk 00:14:15]} {[%emt 00:01:06]} 5. d4
{[%clk 00:14:17]} e6 {[%clk 00:13:27]} {[%emt 00:00:53]} 6. a3 {[%clk
00:14:19]} {[%emt 00:00:02]} Nc6 {[%clk 00:13:02]} {[%emt 00:00:31]} 7. axb4
{[%clk 00:14:22]} {[%emt 00:00:02]} Bxb4+ {[%clk 00:12:53]} {[%emt 00:00:14]} 8.
c3 {[%clk 00:14:26]} {[%emt 00:00:01]} Be7 {[%clk 00:12:40]} {[%emt 00:00:18]}
9. Ba3 {[%clk 00:14:30]} {[%emt 00:00:01]} a6 {[%clk 00:12:14]} {[%emt
00:00:31]} 10. Bd3 {[%clk 00:14:32]} {[%emt 00:00:02]} b5 {[%clk 00:11:42]}
{[%emt 00:00:38]} 11. Bxe7 {[%clk 00:14:27]} {[%emt 00:00:10]} Ngxe7 {[%clk
00:11:01]} {[%emt 00:00:46]} 12. Bxb5 {[%clk 00:14:27]} {[%emt 00:00:04]} Bb7
{[%clk 00:10:43]} {[%emt 00:00:23]} 13. Bd3 {[%clk 00:14:31]} Ng6 {[%clk
00:10:21]} {[%emt 00:00:28]} 14. O-O {[%clk 00:14:26]} {[%emt 00:00:09]} Nf4
{[%clk 00:10:11]} {[%emt 00:00:15]} 15. Bc2 {[%clk 00:14:28]} {[%emt 00:00:03]}
g5 {[%clk 00:09:28]} {[%emt 00:00:49]} 16. g3 {[%clk 00:13:51]} {[%emt
00:00:42]} Nh3+ {[%clk 00:09:05]} {[%emt 00:00:28]} 17. Kg2 {[%clk 00:13:54]}
g4 {[%clk 00:09:05]} {[%emt 00:00:06]} 18. Nh4 {[%clk 00:13:48]} {[%emt
00:00:10]} h5 {[%clk 00:08:47]} {[%emt 00:00:23]} 19. Nd2 {[%clk 00:13:22]}
{[%emt 00:00:31]} Rc8 {[%clk 00:08:09]} {[%emt 00:00:43]} 20. Nb3 {[%clk
00:13:22]} {[%emt 00:00:04]} Nxe5 {[%clk 00:06:45]} {[%emt 00:01:30]} 21. f4
{[%clk 00:12:32]} {[%emt 00:00:55]} Nc4 {[%clk 00:06:25]} {[%emt 00:00:25]} 22.
Re1 {[%clk 00:12:18]} {[%emt 00:00:19]} Qb6 {[%clk 00:05:27]} {[%emt 00:01:03]}
23. Rb1 {[%clk 00:11:14]} {[%emt 00:01:09]} Na3 {[%clk 00:05:28]} {[%emt
00:00:04]} 24. Rb2 {[%clk 00:11:12]} {[%emt 00:00:07]} Rxc3 {[%clk 00:05:01]}
{[%emt 00:00:32]} 25. Qd2 {[%clk 00:10:31]} {[%emt 00:00:46]} Rxc2 {[%clk
00:04:11]} {[%emt 00:00:55]} 26. Rxc2 {[%clk 00:10:33]} {[%emt 00:00:03]} Qxb3
{[%clk 00:03:59]} {[%emt 00:00:18]} 27. Rb2 {[%clk 00:10:20]} {[%emt 00:00:18]}
Nxf4+ {[%clk 00:03:05]} {[%emt 00:00:58]} 28. Kh1 {[%clk 00:09:56]} {[%emt
00:00:28]} Qd3 {[%clk 00:02:05]} {[%emt 00:01:06]} 29. Qxf4 {[%clk 00:09:17]}
{[%emt 00:00:44]} Bc8 {[%clk 00:01:13]} {[%emt 00:00:57]} 30. Rb8 {[%clk
00:08:49]} {[%emt 00:00:34]} Qc2 {[%clk 00:00:09]} {[%emt 00:01:09]} 31. Rc1
{[%clk 00:08:36]} {[%emt 00:00:16]} Qe4+ {[%clk 00:00:14]} {[%emt 00:00:02]} 32.
Qxe4 {[%clk 00:08:34]} {[%emt 00:00:06]} dxe4 {[%clk 00:00:16]} {[%emt
00:00:03]} 1-0

[Event "Open NK Rapid 2025 bord 26-50"]
[Site "Helmond, Netherlands"]
[Date "2025.05.03"]
[Round "3.23"]
[White "Tetova, Amir"]
[Black "Veldhuyzen, Ywein"]
[Result "1-0"]
[TimeControl "15 min +5 sec increment"]
[WhiteFideId "1095838"]
[BlackFideId "1095773"]
[WhiteElo "1759"]
[BlackElo "1894"]

1. d4 {[%clk 00:14:52]} {[%emt 00:00:18]} Nf6 {[%clk 00:15:08]} {[%emt
00:00:03]} 2. Nf3 {[%clk 00:14:56]} {[%emt 00:00:01]} e6 {[%clk 00:15:11]}
{[%emt 00:00:02]} 3. Bf4 {[%clk 00:15:00]} d5 {[%clk 00:15:10]} {[%emt
00:00:06]} 4. e3 {[%clk 00:15:05]} Bd6 {[%clk 00:15:12]} {[%emt 00:00:04]} 5.
Bg3 {[%clk 00:15:07]} {[%emt 00:00:02]} b6 {[%clk 00:15:13]} {[%emt 00:00:04]}
6. c3 {[%clk 00:15:11]} {[%emt 00:00:01]} Ba6 {[%clk 00:15:13]} {[%emt
00:00:05]} 7. Bxa6 {[%clk 00:15:11]} {[%emt 00:00:05]} Nxa6 {[%clk 00:15:16]} 8.
Qa4+ {[%clk 00:15:15]} {[%emt 00:00:01]} Qd7 {[%clk 00:15:10]} {[%emt
00:00:12]} 9. Qxa6 {[%clk 00:15:19]} {[%emt 00:00:01]} O-O {[%clk 00:15:05]}
{[%emt 00:00:10]} 10. Bxd6 {[%clk 00:15:23]} {[%emt 00:00:01]} cxd6 {[%clk
00:15:07]} {[%emt 00:00:04]} 11. Qe2 {[%clk 00:15:21]} {[%emt 00:00:06]} Rfe8
{[%clk 00:15:08]} {[%emt 00:00:04]} 12. Nbd2 {[%clk 00:15:25]} {[%emt
00:00:01]} e5 {[%clk 00:15:11]} {[%emt 00:00:02]} 13. dxe5 {[%clk 00:15:24]}
{[%emt 00:00:05]} dxe5 {[%clk 00:15:15]} {[%emt 00:00:02]} 14. O-O {[%clk
00:15:26]} {[%emt 00:00:04]} Rad8 {[%clk 00:15:17]} {[%emt 00:00:02]} 15. Nb3
{[%clk 00:15:28]} {[%emt 00:00:02]} Qf5 {[%clk 00:14:58]} {[%emt 00:00:24]} 16.
Rad1 {[%clk 00:15:07]} {[%emt 00:00:26]} Qh5 {[%clk 00:14:40]} {[%emt
00:00:23]} 17. Qb5 {[%clk 00:14:42]} {[%emt 00:00:31]} e4 {[%clk 00:13:39]}
{[%emt 00:01:06]} 18. Nfd4 {[%clk 00:14:35]} {[%emt 00:00:12]} Ng4 {[%clk
00:13:31]} {[%emt 00:00:13]} 19. h3 {[%clk 00:14:38]} {[%emt 00:00:02]} Ne5
{[%clk 00:13:34]} {[%emt 00:00:02]} 20. Nc6 {[%clk 00:14:17]} {[%emt 00:00:26]}
Nf3+ {[%clk 00:12:43]} {[%emt 00:00:56]} 21. gxf3 {[%clk 00:13:48]} {[%emt
00:00:34]} Qxh3 {[%clk 00:12:46]} {[%emt 00:00:01]} 22. Nxd8 {[%clk 00:13:25]}
{[%emt 00:00:29]} Rxd8 {[%clk 00:12:50]} {[%emt 00:00:01]} 23. Rxd5 {[%clk
00:13:16]} {[%emt 00:00:15]} Rf8 {[%clk 00:12:45]} {[%emt 00:00:09]} 24. Rh5
{[%clk 00:13:13]} {[%emt 00:00:07]} Qxf3 {[%clk 00:12:40]} {[%emt 00:00:10]} 25.
Qf5 {[%clk 00:13:17]} {[%emt 00:00:02]} 1-0